[Event "Titled Tuesday Blitz June 28 Late 2022"]
[White "Sadhwani, Raunak"]
[Black "Lashkin, Jegor"]
[WhiteFideId "35093487"]
[BlackFideId "13907808"]
[WhiteElo "2616"]
[BlackElo "2368"]
[Result "1-0"]
[Round "05"]
[TimeControl "180+1"]
[Date "2022.06.28"]
[WhiteClock "0:00:16"]
[BlackClock "0:00:01"]

1. e4 {[%clk 0:03:00]}  c5 {[%clk 0:03:00]} 2. Nf3 {[%clk 0:03:00]}  d6 {[%clk 0:03:00]} 3. Bb5+ {[%clk 0:03:00]}  Nd7 {[%clk 0:03:00]} 4. Be2 {[%clk 0:02:58]}  Ngf6 {[%clk 0:02:59]} 5. Nc3 {[%clk 0:02:58]}  g6 {[%clk 0:02:59]} 6. d4 {[%clk 0:02:57]}  cxd4 {[%clk 0:02:59]} 7. Nxd4 {[%clk 0:02:58]}  Bg7 {[%clk 0:03:00]} 8. Be3 {[%clk 0:02:59]}  O-O {[%clk 0:02:58]} 9. f3 {[%clk 0:02:56]}  Nc5 {[%clk 0:02:49]} 10. Qd2 {[%clk 0:02:54]}  Ne6 {[%clk 0:02:32]} 11. O-O-O {[%clk 0:02:52]}  a6 {[%clk 0:02:23]} 12. h4 {[%clk 0:02:52]}  Nxd4 {[%clk 0:02:19]} 13. Bxd4 {[%clk 0:02:52]}  Be6 {[%clk 0:02:18]} 14. h5 {[%clk 0:02:51]}  Qa5 {[%clk 0:02:12]} 15. Kb1 {[%clk 0:02:44]}  Rfc8 {[%clk 0:02:08]} 16. hxg6 {[%clk 0:02:21]}  hxg6 {[%clk 0:02:09]} 17. g4 {[%clk 0:01:53]}  b5 {[%clk 0:01:52]} 18. g5 {[%clk 0:01:15]}  b4 {[%clk 0:01:50]} 19. Na4 {[%clk 0:00:54]}  Bxa2+ {[%clk 0:00:56]} 20. Kxa2 {[%clk 0:00:55]}  Qxa4+ {[%clk 0:00:57]} 21. Kb1 {[%clk 0:00:55]}  Nxe4 {[%clk 0:00:50]} 22. fxe4 {[%clk 0:00:41]}  Bxd4 {[%clk 0:00:50]} 23. Qxd4 {[%clk 0:00:25]}  Qxc2+ {[%clk 0:00:49]} 24. Ka1 {[%clk 0:00:25]}  Qa4+ {[%clk 0:00:32]} 25. Kb1 {[%clk 0:00:25]}  e5 {[%clk 0:00:26]} 26. Qxd6 {[%clk 0:00:25]}  b3 {[%clk 0:00:26]} 27. Qa3 {[%clk 0:00:25]}  Qxe4+ {[%clk 0:00:23]} 28. Bd3 {[%clk 0:00:25]}  Qb7 {[%clk 0:00:20]} 29. Qd6 {[%clk 0:00:19]}  Qc7 {[%clk 0:00:01]} 30. Qf6 {[%clk 0:00:16]} 1-0


[Site "https://www.chess.com"]

[Event "Titled Tuesday Blitz June 28 Late 2022"]
[White "Siniauski, Artsiom"]
[Black "Rasulov, Vugar"]
[WhiteFideId "13512269"]
[BlackFideId "13402390"]
[WhiteElo "2187"]
[BlackElo "2560"]
[Result "0-1"]
[Round "05"]
[TimeControl "180+1"]
[Date "2022.06.28"]
[WhiteClock "0:00:05"]
[BlackClock "0:01:12"]

1. e4 {[%clk 0:02:58]}  c5 {[%clk 0:03:00]} 2. Nf3 {[%clk 0:02:58]}  Nc6 {[%clk 0:03:00]} 3. Bb5 {[%clk 0:02:58]}  e6 {[%clk 0:03:00]} 4. Bxc6 {[%clk 0:02:58]}  bxc6 {[%clk 0:03:00]} 5. d3 {[%clk 0:02:59]}  Ne7 {[%clk 0:02:58]} 6. h4 {[%clk 0:02:59]}  d6 {[%clk 0:02:57]} 7. e5 {[%clk 0:02:55]}  Ng6 {[%clk 0:02:49]} 8. exd6 {[%clk 0:02:48]}  Bxd6 {[%clk 0:02:49]} 9. h5 {[%clk 0:02:48]}  Nf4 {[%clk 0:02:49]} 10. Bxf4 {[%clk 0:02:48]}  Bxf4 {[%clk 0:02:50]} 11. Qe2 {[%clk 0:02:44]}  O-O {[%clk 0:02:48]} 12. Nbd2 {[%clk 0:02:44]}  Qa5 {[%clk 0:02:46]} 13. g3 {[%clk 0:02:34]}  Bh6 {[%clk 0:02:46]} 14. Kf1 {[%clk 0:02:30]}  f6 {[%clk 0:02:40]} 15. Nc4 {[%clk 0:02:28]}  Qc7 {[%clk 0:02:40]} 16. Kg2 {[%clk 0:02:27]}  e5 {[%clk 0:02:40]} 17. Nfd2 {[%clk 0:02:25]}  Be6 {[%clk 0:02:39]} 18. Ne4 {[%clk 0:02:21]}  Bd5 {[%clk 0:02:36]} 19. f3 {[%clk 0:02:17]}  Qe7 {[%clk 0:02:35]} 20. Qf2 {[%clk 0:02:14]}  f5 {[%clk 0:02:28]} 21. Qxc5 {[%clk 0:02:05]}  Qe6 {[%clk 0:02:28]} 22. Nc3 {[%clk 0:01:59]}  e4 {[%clk 0:02:27]} 23. Rae1 {[%clk 0:01:21]}  Rae8 {[%clk 0:01:59]} 24. fxe4 {[%clk 0:00:59]}  fxe4 {[%clk 0:01:58]} 25. Nxe4 {[%clk 0:00:58]}  Qg4 {[%clk 0:01:51]} 26. Rhf1 {[%clk 0:00:54]}  Qxh5 {[%clk 0:01:46]} 27. Nd6 {[%clk 0:00:20]}  Rb8 {[%clk 0:01:43]} 28. b3 {[%clk 0:00:16]}  Bd2 {[%clk 0:01:19]} 29. Rd1 {[%clk 0:00:12]}  Bb4 {[%clk 0:01:11]} 30. Rxf8+ {[%clk 0:00:08]}  Rxf8 {[%clk 0:01:12]} 31. Qxb4 {[%clk 0:00:08]}  Qxd1 {[%clk 0:01:11]} 32. Qb7 {[%clk 0:00:05]}  Qf1+ {[%clk 0:01:11]} 33. Kh2 {[%clk 0:00:05]}  Rf2+ {[%clk 0:01:11]} 34. Nxf2 {[%clk 0:00:05]}  Qg2# {[%clk 0:01:12]} 0-1


[Site "https://www.chess.com"]

[Event "Titled Tuesday Blitz June 28 Late 2022"]
[White "So, Wesley"]
[Black "Keymer, Vincent"]
[WhiteFideId "5202213"]
[BlackFideId "12940690"]
[WhiteElo "2742"]
[BlackElo "2548"]
[Result "0-1"]
[Round "05"]
[TimeControl "180+1"]
[Date "2022.06.28"]
[WhiteClock "0:00:08"]
[BlackClock "0:00:52"]

1. e4 {[%clk 0:03:00]}  c6 {[%clk 0:02:59]} 2. d4 {[%clk 0:02:59]}  d5 {[%clk 0:03:00]} 3. e5 {[%clk 0:02:59]}  Bf5 {[%clk 0:03:00]} 4. Nd2 {[%clk 0:02:59]}  e6 {[%clk 0:03:00]} 5. Nb3 {[%clk 0:02:59]}  Nd7 {[%clk 0:02:59]} 6. Nf3 {[%clk 0:02:59]}  Qc7 {[%clk 0:02:58]} 7. Be2 {[%clk 0:02:58]}  c5 {[%clk 0:02:58]} 8. dxc5 {[%clk 0:02:55]}  Bxc5 {[%clk 0:02:59]} 9. Nxc5 {[%clk 0:02:46]}  Qxc5 {[%clk 0:03:00]} 10. c3 {[%clk 0:02:32]}  Ne7 {[%clk 0:02:58]} 11. Be3 {[%clk 0:02:22]}  Qc7 {[%clk 0:02:47]} 12. Nd4 {[%clk 0:02:21]}  Nxe5 {[%clk 0:02:16]} 13. Nb5 {[%clk 0:02:16]}  Qd7 {[%clk 0:02:13]} 14. Nxa7 {[%clk 0:02:10]}  Nc4 {[%clk 0:02:00]} 15. Bxc4 {[%clk 0:01:11]}  dxc4 {[%clk 0:02:01]} 16. Qxd7+ {[%clk 0:01:11]}  Kxd7 {[%clk 0:02:01]} 17. Nb5 {[%clk 0:01:12]}  Bd3 {[%clk 0:02:00]} 18. Bc5 {[%clk 0:00:48]}  Nd5 {[%clk 0:01:51]} 19. Ba3 {[%clk 0:00:37]}  e5 {[%clk 0:01:48]} 20. O-O-O {[%clk 0:00:25]}  Kc6 {[%clk 0:01:20]} 21. Nd6 {[%clk 0:00:24]}  f6 {[%clk 0:01:18]} 22. Nf7 {[%clk 0:00:14]}  Rhc8 {[%clk 0:01:12]} 23. Rhe1 {[%clk 0:00:14]}  Rc7 {[%clk 0:01:10]} 24. Nxe5+ {[%clk 0:00:15]}  fxe5 {[%clk 0:01:10]} 25. Rxe5 {[%clk 0:00:15]}  b6 {[%clk 0:01:02]} 26. Kd2 {[%clk 0:00:12]}  Rd8 {[%clk 0:00:59]} 27. Rde1 {[%clk 0:00:11]}  Nf4 {[%clk 0:00:56]} 28. Re7 {[%clk 0:00:08]}  Bg6+ {[%clk 0:00:52]} 0-1


[Site "https://www.chess.com"]

[Event "Titled Tuesday Blitz June 28 Late 2022"]
[White "Vlassov, Nikolai"]
[Black "Dardha, Daniel"]
[WhiteFideId "4103360"]
[BlackFideId "240990"]
[WhiteElo "2407"]
[BlackElo "2482"]
[Result "0-1"]
[Round "05"]
[TimeControl "180+1"]
[Date "2022.06.28"]
[WhiteClock "0:00:27"]
[BlackClock "0:01:24"]

1. e4 {[%clk 0:03:00]}  c5 {[%clk 0:02:56]} 2. c3 {[%clk 0:02:58]}  a6 {[%clk 0:02:52]} 3. d4 {[%clk 0:02:55]}  cxd4 {[%clk 0:02:53]} 4. cxd4 {[%clk 0:02:54]}  d5 {[%clk 0:02:53]} 5. e5 {[%clk 0:02:48]}  Nc6 {[%clk 0:02:51]} 6. Nc3 {[%clk 0:02:47]}  Bf5 {[%clk 0:02:50]} 7. g4 {[%clk 0:02:40]}  Bg6 {[%clk 0:02:41]} 8. e6 {[%clk 0:02:39]}  fxe6 {[%clk 0:02:36]} 9. f4 {[%clk 0:02:39]}  Nf6 {[%clk 0:02:32]} 10. h3 {[%clk 0:02:28]}  Ne4 {[%clk 0:02:21]} 11. Nf3 {[%clk 0:02:16]}  e5 {[%clk 0:02:17]} 12. dxe5 {[%clk 0:02:08]}  e6 {[%clk 0:02:16]} 13. Bd3 {[%clk 0:02:06]}  Bc5 {[%clk 0:02:13]} 14. Bxe4 {[%clk 0:01:57]}  dxe4 {[%clk 0:02:11]} 15. Qxd8+ {[%clk 0:01:56]}  Rxd8 {[%clk 0:02:12]} 16. Ng5 {[%clk 0:01:56]}  Nd4 {[%clk 0:02:12]} 17. Rb1 {[%clk 0:01:48]}  e3 {[%clk 0:02:10]} 18. Nge4 {[%clk 0:01:24]}  Bb4 {[%clk 0:02:06]} 19. Kf1 {[%clk 0:01:16]}  Bxc3 {[%clk 0:02:05]} 20. Nxc3 {[%clk 0:01:13]}  Bd3+ {[%clk 0:01:54]} 21. Kg2 {[%clk 0:01:07]}  Bxb1 {[%clk 0:01:51]} 22. Nxb1 {[%clk 0:01:05]}  Nc2 {[%clk 0:01:39]} 23. Nc3 {[%clk 0:01:03]}  O-O {[%clk 0:01:38]} 24. Kf3 {[%clk 0:01:01]}  g5 {[%clk 0:01:28]} 25. f5 {[%clk 0:00:44]}  exf5 {[%clk 0:01:26]} 26. gxf5 {[%clk 0:00:44]}  Rxf5+ {[%clk 0:01:26]} 27. Kg4 {[%clk 0:00:29]}  Rxe5 {[%clk 0:01:25]} 28. Rh2 {[%clk 0:00:27]}  Nd4 {[%clk 0:01:24]} 0-1


[Site "https://www.chess.com"]

[Event "Titled Tuesday Blitz June 28 Late 2022"]
[White "Vovk, Orest"]
[Black "Kim, Sergey"]
[WhiteFideId "14113490"]
[BlackFideId "13700570"]
[WhiteElo "2203"]
[BlackElo "2592"]
[Result "0-1"]
[Round "05"]
[TimeControl "180+1"]
[Date "2022.06.29"]
[WhiteClock "0:00:03"]
[BlackClock "0:00:23"]

1. h4 {[%clk 0:02:56]}  d5 {[%clk 0:02:58]} 2. h5 {[%clk 0:02:55]}  h6 {[%clk 0:02:56]} 3. e4 {[%clk 0:02:51]}  dxe4 {[%clk 0:02:55]} 4. Nc3 {[%clk 0:02:51]}  Nf6 {[%clk 0:02:55]} 5. Qe2 {[%clk 0:02:51]}  Nc6 {[%clk 0:02:53]} 6. Nxe4 {[%clk 0:02:51]}  Nd5 {[%clk 0:02:47]} 7. c3 {[%clk 0:02:44]}  Bf5 {[%clk 0:02:43]} 8. d4 {[%clk 0:02:41]}  e6 {[%clk 0:02:42]} 9. g3 {[%clk 0:02:36]}  Be7 {[%clk 0:02:37]} 10. Nf3 {[%clk 0:02:30]}  O-O {[%clk 0:02:32]} 11. Bh3 {[%clk 0:02:30]}  Re8 {[%clk 0:02:30]} 12. Kf1 {[%clk 0:02:22]}  Bf8 {[%clk 0:02:28]} 13. Kg2 {[%clk 0:02:20]}  b6 {[%clk 0:02:23]} 14. g4 {[%clk 0:02:12]}  Bh7 {[%clk 0:02:07]} 15. g5 {[%clk 0:02:12]}  hxg5 {[%clk 0:02:07]} 16. Nfxg5 {[%clk 0:02:08]}  Bf5 {[%clk 0:02:06]} 17. Qf3 {[%clk 0:01:59]}  f6 {[%clk 0:01:54]} 18. Bxf5 {[%clk 0:01:57]}  exf5 {[%clk 0:01:54]} 19. Qxf5 {[%clk 0:01:55]}  fxg5 {[%clk 0:01:54]} 20. Nxg5 {[%clk 0:01:53]}  Nf6 {[%clk 0:01:51]} 21. h6 {[%clk 0:01:42]}  gxh6 {[%clk 0:00:58]} 22. Qg6+ {[%clk 0:01:41]}  Bg7 {[%clk 0:00:58]} 23. Rxh6 {[%clk 0:01:02]}  Qd5+ {[%clk 0:00:49]} 24. Kf1 {[%clk 0:01:00]}  Qc4+ {[%clk 0:00:41]} 25. Kg2 {[%clk 0:00:53]}  Qd5+ {[%clk 0:00:37]} 26. Kh2 {[%clk 0:00:13]}  Ng4+ {[%clk 0:00:31]} 27. Kg3 {[%clk 0:00:13]}  Nxh6 {[%clk 0:00:30]} 28. Qh7+ {[%clk 0:00:12]}  Kf8 {[%clk 0:00:29]} 29. Bf4 {[%clk 0:00:13]}  Qf5 {[%clk 0:00:25]} 30. Rh1 {[%clk 0:00:03]}  Qg4+ {[%clk 0:00:23]} 0-1


[Site "https://www.chess.com"]

[Event "Titled Tuesday Blitz June 28 Late 2022"]
[White "Wartiovaara, Oliver"]
[Black "Al-Tarboush, Ward"]
[WhiteFideId "513024"]
[BlackFideId "7601450"]
[WhiteElo "1971"]
[BlackElo "2249"]
[Result "1-0"]
[Round "05"]
[TimeControl "180+1"]
[Date "2022.06.29"]
[WhiteClock "0:00:05"]
[BlackClock "0:00:17"]

1. Nf3 {[%clk 0:02:57]}  b6 {[%clk 0:02:59]} 2. e4 {[%clk 0:02:53]}  Bb7 {[%clk 0:02:59]} 3. Nc3 {[%clk 0:02:53]}  e6 {[%clk 0:03:00]} 4. d4 {[%clk 0:02:46]}  Bb4 {[%clk 0:02:59]} 5. Bd3 {[%clk 0:02:46]}  Nf6 {[%clk 0:02:59]} 6. Qe2 {[%clk 0:02:33]}  d5 {[%clk 0:02:59]} 7. e5 {[%clk 0:02:30]}  Ne4 {[%clk 0:02:59]} 8. O-O {[%clk 0:02:21]}  Nxc3 {[%clk 0:02:59]} 9. bxc3 {[%clk 0:02:22]}  Bxc3 {[%clk 0:02:59]} 10. Rb1 {[%clk 0:02:22]}  Nc6 {[%clk 0:02:59]} 11. Qe3 {[%clk 0:02:03]}  Bb4 {[%clk 0:02:58]} 12. c3 {[%clk 0:01:43]}  Be7 {[%clk 0:02:56]} 13. Ne1 {[%clk 0:01:23]}  Qd7 {[%clk 0:02:55]} 14. f4 {[%clk 0:01:23]}  g6 {[%clk 0:02:51]} 15. Nc2 {[%clk 0:01:18]}  O-O-O {[%clk 0:02:50]} 16. a4 {[%clk 0:01:14]}  a5 {[%clk 0:02:48]} 17. Na3 {[%clk 0:01:11]}  f6 {[%clk 0:02:37]} 18. Nb5 {[%clk 0:01:09]}  f5 {[%clk 0:02:32]} 19. Bd2 {[%clk 0:01:05]}  Rdg8 {[%clk 0:02:28]} 20. c4 {[%clk 0:01:02]}  dxc4 {[%clk 0:02:27]} 21. Bxc4 {[%clk 0:01:02]}  Nb4 {[%clk 0:02:24]} 22. Bxb4 {[%clk 0:01:01]}  Bxb4 {[%clk 0:02:23]} 23. Qb3 {[%clk 0:00:59]}  Bd5 {[%clk 0:02:23]} 24. Rfc1 {[%clk 0:00:49]}  Bxc4 {[%clk 0:01:47]} 25. Qxc4 {[%clk 0:00:49]}  Rg7 {[%clk 0:01:47]} 26. Na7+ {[%clk 0:00:35]}  Kb7 {[%clk 0:01:43]} 27. Nc6 {[%clk 0:00:35]}  Qd5 {[%clk 0:01:32]} 28. Nxb4 {[%clk 0:00:30]}  Qxc4 {[%clk 0:01:29]} 29. Rxc4 {[%clk 0:00:30]}  axb4 {[%clk 0:01:29]} 30. Rcxb4 {[%clk 0:00:26]}  Ra8 {[%clk 0:01:29]} 31. Rc1 {[%clk 0:00:24]}  Rd7 {[%clk 0:01:28]} 32. Rbc4 {[%clk 0:00:23]}  Ra5 {[%clk 0:01:26]} 33. Kf2 {[%clk 0:00:23]}  Rdd5 {[%clk 0:01:21]} 34. Rxc7+ {[%clk 0:00:22]}  Ka6 {[%clk 0:01:21]} 35. R1c4 {[%clk 0:00:17]}  Rd8 {[%clk 0:01:11]} 36. Rxh7 {[%clk 0:00:16]}  Rad5 {[%clk 0:01:06]} 37. Ke3 {[%clk 0:00:16]}  R5d7 {[%clk 0:01:04]} 38. Rxd7 {[%clk 0:00:14]}  Rxd7 {[%clk 0:01:05]} 39. Rc6 {[%clk 0:00:13]}  Re7 {[%clk 0:01:02]} 40. d5 {[%clk 0:00:11]}  exd5 {[%clk 0:00:58]} 41. Kd4 {[%clk 0:00:11]}  Ka5 {[%clk 0:00:55]} 42. e6 {[%clk 0:00:11]}  Kxa4 {[%clk 0:00:53]} 43. Rxb6 {[%clk 0:00:11]}  Ka5 {[%clk 0:00:48]} 44. Rd6 {[%clk 0:00:11]}  Kb5 {[%clk 0:00:48]} 45. Kxd5 {[%clk 0:00:11]}  Ra7 {[%clk 0:00:46]} 46. Rd7 {[%clk 0:00:12]}  Ra2 {[%clk 0:00:46]} 47. e7 {[%clk 0:00:11]}  Re2 {[%clk 0:00:45]} 48. Rd6 {[%clk 0:00:07]}  Rxe7 {[%clk 0:00:43]} 49. Rxg6 {[%clk 0:00:08]}  Re2 {[%clk 0:00:41]} 50. Rg5 {[%clk 0:00:07]}  Kb6 {[%clk 0:00:40]} 51. Rg7 {[%clk 0:00:05]}  Rf2 {[%clk 0:00:28]} 52. g3 {[%clk 0:00:03]}  Rxh2 {[%clk 0:00:28]} 53. Ke5 {[%clk 0:00:03]}  Rh5 {[%clk 0:00:28]} 54. Rg5 {[%clk 0:00:02]}  Rh3 {[%clk 0:00:27]} 55. Kxf5 {[%clk 0:00:03]}  Kc6 {[%clk 0:00:27]} 56. Rg6+ {[%clk 0:00:03]}  Kd7 {[%clk 0:00:27]} 57. g4 {[%clk 0:00:04]}  Ke7 {[%clk 0:00:26]} 58. g5 {[%clk 0:00:05]}  Kf7 {[%clk 0:00:26]} 59. Ra6 {[%clk 0:00:06]}  Rb3 {[%clk 0:00:25]} 60. Ra7+ {[%clk 0:00:06]}  Kg8 {[%clk 0:00:24]} 61. Kg6 {[%clk 0:00:06]}  Rb6+ {[%clk 0:00:24]} 62. Kh5 {[%clk 0:00:06]}  Rb1 {[%clk 0:00:24]} 63. f5 {[%clk 0:00:05]}  Rf1 {[%clk 0:00:20]} 64. Kg6 {[%clk 0:00:05]}  Kf8 {[%clk 0:00:19]} 65. Ra8+ {[%clk 0:00:05]}  Ke7 {[%clk 0:00:19]} 66. f6+ {[%clk 0:00:05]}  Ke6 {[%clk 0:00:20]} 67. Re8+ {[%clk 0:00:05]}  Kd7 {[%clk 0:00:20]} 68. Re2 {[%clk 0:00:05]}  Ra1 {[%clk 0:00:17]} 69. f7 {[%clk 0:00:05]} 1-0


[Site "https://www.chess.com"]

[Event "Titled Tuesday Blitz June 28 Late 2022"]
[White "Abdi, Farzad"]
[Black "Rosen, Eric"]
[WhiteFideId "2076829"]
[BlackFideId "2032562"]
[WhiteElo "2326"]
[BlackElo "2362"]
[Result "1/2-1/2"]
[Round "06"]
[TimeControl "180+1"]
[Date "2022.06.29"]
[WhiteClock "0:00:08"]
[BlackClock "0:00:02"]

1. e4 {[%clk 0:02:59]}  e5 {[%clk 0:03:00]} 2. Nf3 {[%clk 0:02:58]}  Nc6 {[%clk 0:03:01]} 3. Bb5 {[%clk 0:02:57]}  a6 {[%clk 0:02:59]} 4. Ba4 {[%clk 0:02:56]}  Nf6 {[%clk 0:02:59]} 5. O-O {[%clk 0:02:56]}  Be7 {[%clk 0:02:56]} 6. Re1 {[%clk 0:02:56]}  b5 {[%clk 0:02:56]} 7. Bb3 {[%clk 0:02:56]}  O-O {[%clk 0:02:57]} 8. h3 {[%clk 0:02:55]}  Bb7 {[%clk 0:02:54]} 9. a4 {[%clk 0:02:53]}  b4 {[%clk 0:02:53]} 10. d4 {[%clk 0:02:49]}  d6 {[%clk 0:02:50]} 11. c3 {[%clk 0:02:42]}  bxc3 {[%clk 0:02:45]} 12. Nxc3 {[%clk 0:02:41]}  h6 {[%clk 0:02:10]} 13. Be3 {[%clk 0:02:12]}  Re8 {[%clk 0:02:02]} 14. d5 {[%clk 0:02:10]}  Nb8 {[%clk 0:02:02]} 15. Rc1 {[%clk 0:01:51]}  Nbd7 {[%clk 0:01:58]} 16. Re2 {[%clk 0:01:46]}  Nh5 {[%clk 0:01:53]} 17. Rec2 {[%clk 0:01:41]}  Nf4 {[%clk 0:01:48]} 18. Ne2 {[%clk 0:01:39]}  Nxe2+ {[%clk 0:01:46]} 19. Qxe2 {[%clk 0:01:37]}  Rc8 {[%clk 0:01:45]} 20. a5 {[%clk 0:01:29]}  Bg5 {[%clk 0:01:26]} 21. Nxg5 {[%clk 0:01:22]}  hxg5 {[%clk 0:01:27]} 22. Ba4 {[%clk 0:01:21]}  Re7 {[%clk 0:01:27]} 23. Bc6 {[%clk 0:01:20]}  Bxc6 {[%clk 0:01:26]} 24. Rxc6 {[%clk 0:01:19]}  Nb8 {[%clk 0:01:25]} 25. R6c3 {[%clk 0:01:14]}  f6 {[%clk 0:01:26]} 26. b4 {[%clk 0:01:11]}  Qe8 {[%clk 0:01:23]} 27. Qg4 {[%clk 0:01:10]}  c6 {[%clk 0:01:07]} 28. Bb6 {[%clk 0:00:57]}  g6 {[%clk 0:00:57]} 29. g3 {[%clk 0:00:54]}  Kg7 {[%clk 0:00:57]} 30. Kg2 {[%clk 0:00:55]}  Rf7 {[%clk 0:00:56]} 31. h4 {[%clk 0:00:36]}  gxh4 {[%clk 0:00:39]} 32. Qxh4 {[%clk 0:00:34]}  Rf8 {[%clk 0:00:38]} 33. Rh1 {[%clk 0:00:27]}  Rh8 {[%clk 0:00:38]} 34. Qxh8+ {[%clk 0:00:26]}  Qxh8 {[%clk 0:00:39]} 35. Rxh8 {[%clk 0:00:25]}  Kxh8 {[%clk 0:00:40]} 36. Ba7 {[%clk 0:00:25]}  c5 {[%clk 0:00:25]} 37. bxc5 {[%clk 0:00:20]}  dxc5 {[%clk 0:00:25]} 38. Bxb8 {[%clk 0:00:20]}  Rxb8 {[%clk 0:00:25]} 39. Rxc5 {[%clk 0:00:20]}  Kg7 {[%clk 0:00:24]} 40. Rc6 {[%clk 0:00:20]}  Ra8 {[%clk 0:00:24]} 41. Rc7+ {[%clk 0:00:19]}  Kf8 {[%clk 0:00:22]} 42. Rh7 {[%clk 0:00:17]}  Kg8 {[%clk 0:00:22]} 43. Rc7 {[%clk 0:00:16]}  Kf8 {[%clk 0:00:22]} 44. d6 {[%clk 0:00:16]}  Rd8 {[%clk 0:00:20]} 45. Rc6 {[%clk 0:00:16]}  Kf7 {[%clk 0:00:20]} 46. Rxa6 {[%clk 0:00:16]}  Ke6 {[%clk 0:00:21]} 47. d7+ {[%clk 0:00:15]}  Ke7 {[%clk 0:00:19]} 48. Ra7 {[%clk 0:00:14]}  Kd6 {[%clk 0:00:19]} 49. Ra6+ {[%clk 0:00:14]}  Ke7 {[%clk 0:00:19]} 50. Ra7 {[%clk 0:00:14]}  Kd6 {[%clk 0:00:19]} 51. Kf3 {[%clk 0:00:14]}  Ke6 {[%clk 0:00:07]} 52. Ke3 {[%clk 0:00:12]}  f5 {[%clk 0:00:07]} 53. exf5+ {[%clk 0:00:10]}  gxf5 {[%clk 0:00:08]} 54. f4 {[%clk 0:00:09]}  e4 {[%clk 0:00:08]} 55. g4 {[%clk 0:00:09]}  fxg4 {[%clk 0:00:05]} 56. Kxe4 {[%clk 0:00:09]}  Kf6 {[%clk 0:00:04]} 57. Ra6+ {[%clk 0:00:09]}  Ke7 {[%clk 0:00:03]} 58. Ra7 {[%clk 0:00:09]}  Kf6 {[%clk 0:00:03]} 59. f5 {[%clk 0:00:09]}  g3 {[%clk 0:00:04]} 60. Ra6+ {[%clk 0:00:08]}  Kf7 {[%clk 0:00:01]} 61. Rg6 {[%clk 0:00:06]}  Rxd7 {[%clk 0:00:01]} 62. Rxg3 {[%clk 0:00:07]}  Ra7 {[%clk 0:00:01]} 63. Ra3 {[%clk 0:00:07]}  Kf6 {[%clk 0:00:01]} 64. a6 {[%clk 0:00:07]}  Ra8 {[%clk 0:00:01]} 65. Kf4 {[%clk 0:00:07]}  Ke7 {[%clk 0:00:01]} 66. Ra5 {[%clk 0:00:07]}  Kf6 {[%clk 0:00:01]} 67. a7 {[%clk 0:00:08]}  Rxa7 {[%clk 0:00:02]} 68. Rxa7 {[%clk 0:00:08]} 1/2-1/2


[Site "https://www.chess.com"]

[Event "Titled Tuesday Blitz June 28 Late 2022"]
[White "Adla, Diego"]
[Black "Corrales Jimenez, Fidel"]
[WhiteFideId "100072"]
[BlackFideId "3506690"]
[WhiteElo "2377"]
[BlackElo "2541"]
[Result "0-1"]
[Round "06"]
[TimeControl "180+1"]
[Date "2022.06.28"]
[WhiteClock "0:00:01"]
[BlackClock "0:01:06"]

1. e4 {[%clk 0:02:54]}  c5 {[%clk 0:02:59]} 2. Nf3 {[%clk 0:02:53]}  d6 {[%clk 0:03:00]} 3. Bb5+ {[%clk 0:02:52]}  Nd7 {[%clk 0:02:59]} 4. d4 {[%clk 0:02:51]}  cxd4 {[%clk 0:02:58]} 5. Qxd4 {[%clk 0:02:51]}  a6 {[%clk 0:02:59]} 6. Bxd7+ {[%clk 0:02:50]}  Bxd7 {[%clk 0:03:00]} 7. Bg5 {[%clk 0:02:48]}  Nf6 {[%clk 0:02:59]} 8. Nc3 {[%clk 0:02:47]}  e6 {[%clk 0:02:59]} 9. O-O-O {[%clk 0:02:46]}  h6 {[%clk 0:02:58]} 10. Bxf6 {[%clk 0:02:45]}  Qxf6 {[%clk 0:02:58]} 11. Qxf6 {[%clk 0:02:45]}  gxf6 {[%clk 0:02:58]} 12. Nd4 {[%clk 0:02:43]}  Rc8 {[%clk 0:02:58]} 13. f4 {[%clk 0:02:42]}  h5 {[%clk 0:02:57]} 14. Kb1 {[%clk 0:02:41]}  h4 {[%clk 0:02:57]} 15. g4 {[%clk 0:02:37]}  h3 {[%clk 0:02:34]} 16. Rhg1 {[%clk 0:02:35]}  Ke7 {[%clk 0:02:29]} 17. Rd3 {[%clk 0:02:20]}  b5 {[%clk 0:02:25]} 18. a3 {[%clk 0:02:19]}  Bh6 {[%clk 0:02:22]} 19. Nde2 {[%clk 0:01:51]}  a5 {[%clk 0:02:22]} 20. Rxh3 {[%clk 0:01:05]}  b4 {[%clk 0:02:19]} 21. axb4 {[%clk 0:01:05]}  axb4 {[%clk 0:02:20]} 22. Nd1 {[%clk 0:01:05]}  Bb5 {[%clk 0:02:11]} 23. Nd4 {[%clk 0:01:05]}  Bd7 {[%clk 0:01:59]} 24. Rf3 {[%clk 0:00:48]}  Bg7 {[%clk 0:01:50]} 25. f5 {[%clk 0:00:09]}  Rxh2 {[%clk 0:01:47]} 26. Ne3 {[%clk 0:00:09]}  Bh6 {[%clk 0:01:43]} 27. b3 {[%clk 0:00:08]}  Rc3 {[%clk 0:01:42]} 28. Re1 {[%clk 0:00:08]}  Rd2 {[%clk 0:01:35]} 29. fxe6 {[%clk 0:00:07]}  fxe6 {[%clk 0:01:35]} 30. Ndf5+ {[%clk 0:00:05]}  exf5 {[%clk 0:01:33]} 31. Nd5+ {[%clk 0:00:05]}  Kd8 {[%clk 0:01:28]} 32. Nxc3 {[%clk 0:00:03]}  bxc3 {[%clk 0:01:29]} 33. gxf5 {[%clk 0:00:03]}  Rh2 {[%clk 0:01:19]} 34. Rg1 {[%clk 0:00:03]}  Bd2 {[%clk 0:01:07]} 35. Rg8+ {[%clk 0:00:02]}  Kc7 {[%clk 0:01:07]} 36. Rg7 {[%clk 0:00:01]}  Kc6 {[%clk 0:01:06]} 0-1


[Site "https://www.chess.com"]